Cogmind - Beta 16 @@@ ROGUE MODE // 2026.01.05 @ 15:25:13 Player: PE-P51 Result: Smashed by cave-in Performance ------------- Evolutions (0) 0 Regions Visited (0) 0 Robots Destroyed (2) 10 Value Destroyed (14) 14 Prototype IDs (0) 0 Alien Tech Used (0) 0 Bonus (0) 0 TOTAL SCORE: 24 Bonus ------- None Cogmind --------- Core Integrity 0/250 Matter 294/300 Energy 100/100 System Corruption 12% Temperature Cool (0) Movement Core (100) Ox1 Location -11/Scrapyard Parts ------- > --- POWER (1) -------- (None) > --- PROPULSION (2) --- (None) > --- UTILITY (2) ------ Small Storage Unit > --- WEAPON (2) ------- (None) > --- INVENTORY (8) ---- Light Ion Engine Light Treads Light Treads Wheel Compact Wheel Small Laser Assault Rifle Peak State ------------ > --- POWER ------------ Light Ion Engine > --- PROPULSION ------- Aluminum Leg Aluminum Leg > --- UTILITY ---------- Small Storage Unit Improved Terrain Scanner > --- WEAPON ----------- EM Pulse Gun Small Laser > --- INVENTORY -------- Light Ion Engine Light Treads Light Treads Wheel Compact Wheel Assault Rifle [Rating: 9] Favorites ----------- Power Light Ion Engine Engine Light Ion Engine Propulsion Aluminum Leg Leg Aluminum Leg Utility Small Storage Unit Device Improved Terrain Scanner Storage Small Storage Unit Weapon EM Pulse Gun Energy Gun EM Pulse Gun Special Weapon Mining Laser Build | -11 ------- Run | Yrd Slots Evolved . | . Power . | . Propulsion . | . Utility . | . Weapon . | . Parts Attached 2 | 2 Power . | . Engine . | . Core . | . Reactor . | . Propulsion . | . Treads . | . Leg . | . Wheel . | . Hover . | . Flight . | . Utility 1 | 1 Device 1 | 1 Storage . | . Processor . | . Hackware . | . Protection . | . Artifact . | . Weapon 1 | 1 Energy Gun . | . Energy Cannon . | . Ballistic Gun . | . Ballistic Cannon . | . Launcher . | . Special Weapon 1 | 1 Impact Weapon . | . Slashing Weapon . | . Piercing Weapon . | . Special Melee Weapon . | . Unidentified Prototypes . | . Parts Lost 6 | 6 Power 1 | 1 Propulsion 2 | 2 Utility 1 | 1 Weapon 2 | 2 Highest Loss Streak 4 | 4 To Critical Strikes . | . Average Backups 6 | 6 Power 1 | 1 Propulsion 4 | 4 Utility . | . Weapon 1 | 1 Tool/Special . | . Unused Backups 2 | 2 Power . | . Propulsion . | . Utility . | . Weapon 2 | 2 Tool/Special . | . Average Slot Usage (%) . | . Peak Build Rating 9 | 9 Average Rating 8 | 8 On Entrance 6 | 6 Avg Prop Armor Cover (%) . | . Naked Turns . | . Heaviest Build 12 | 12 Greatest Support 20 | 20 Greatest Overweight (x) . | . Average Overweight (x) . | . Largest Inventory Capacity 8 | 8 Average Capacity 8 | 8 Most Carried 7 | 7 Average Carried 6 | 6 Final Capacity 8 | 8 Final Carried 7 | 7 Class Distribution -------------------- None Dominant Class ---------------- None Resources | -11 ----------- Run | Yrd Matter Collected 210 | 210 Remotely . | . Salvage Created 39 | 39 Parts 7 | 7 Haulers Intercepted . | . Recyclers Shooed . | . Parts Field Recycled . | . Retrieved Matter . | . Parts Self-Destructed . | . Prevented . | . Parts Restored . | . Kills | -11 ------- Run | Yrd Combat Hostiles Destroyed . | . Classes Destroyed 1 | 1 Tunneler 2 | 2 Best Kill Streak 1 | 1 Combat Bots Only . | . Max Kills in Single Turn 1 | 1 Gunslinging . | . Exploded . | . Melee . | . Uniques/NPCs Destroyed . | . Combat | -11 -------- Run | Yrd Hostile Shots Fired . | . Missed . | . Hits . | . Damage Taken 842 | 842 Core 276 | 276 Absorbed by Shields . | . Core Remaining (%) . | . Volleys Fired 41 | 41 Largest 2 | 2 Hottest 100 | 100 Shots Fired 42 | 42 Gun 9 | 9 Cannon . | . Launcher . | . Special 33 | 33 Kinetic . | . Thermal 41 | 41 Explosive . | . Electromagnetic 1 | 1 Robot Hit Streak 2 | 2 Robot Miss Streak 2 | 2 Penetration Max . | . Secondary Targets . | . Shots Hit Robots 4 | 4 Core Hits 3 | 3 Critical Kills . | . Critical Parts Destroyed . | . Critical Strikes . | . Melee Attacks . | . Impact . | . Slashing . | . Piercing . | . Sneak Attacks . | . Combat Hostiles . | . Follow-up Attacks . | . Damage Inflicted 46 | 46 Guns 46 | 46 Cannons . | . Explosions . | . Melee . | . Ramming . | . Kinetic . | . Thermal 46 | 46 Explosive . | . Electromagnetic . | . Impact . | . Slashing . | . Piercing . | . Highest Corruption 12 | 12 Average Corruption 7 | 7 Corruption Purged . | . Corruption Blocked . | . Effects 3 | 3 Matter Fused 2 | 2 Heat Flow Errors 1 | 1 Overload Shots . | . Overflow Damage . | . Projectiles . | . Explosions . | . Melee . | . Knockbacks . | . Impact . | . Kinetic . | . Secondary . | . Self-Inflicted Damage . | . Shots . | . Rammed . | . Targets Rammed . | . Kicked . | . Crushed . | . Highest Temperature 130 | 130 Average Temperature 49 | 49 Received Heat Transfer . | . Siege Activations . | . Martial Activations . | . Shielding Activations . | . Robots Disrupted . | . Combat Hostiles . | . Robots Corrupted . | . Combat Hostiles . | . Parts Fried . | . Impact Corruptions . | . Robots Melted . | . Combat Hostiles . | . Parts Melted . | . Heat Transferred 100 | 100 Parts Sabotaged . | . Parts Stolen . | . Parts Stripped . | . Power Chain Reactions . | . Alert | -11 ------- Run | Yrd Maximum Alert Level . | . Low Security (%) 100 | 100 Level 1 . | . Level 2 . | . Level 3 . | . Level 4 . | . Level 5 . | . High Security . | . Max Security . | . Peak Influence 5 | 5 Initial . | . Average . | . Influence Increases 10 | 10 Destroy 0b10 Robot/NC 10 | 10 Influence Decreases 10 | 10 Time Decay 10 | 10 Squads Dispatched . | . Investigation . | . Extermination . | . Reinforcement . | . Assault . | . Garrison . | . Intercept . | . Searches Triggered . | . Construction Impeded . | . Haulers Reinforced . | . Active Scanning Responses . | . Cargo Convoy Interrupts . | . Stealth | -11 --------- Run | Yrd Distress Signals . | . Communications Jammed . | . Distress Signals . | . Times Spotted . | . Peak Tracking Total . | . Tactical Retreats . | . Traps | -11 ------- Run | Yrd Traps Triggered . | . Indirectly . | . Trap Hack Attempts . | . Triggered . | . Disarmed . | . Reprogrammed . | . Reused . | . Traps Extracted . | . Installed . | . Triggered . | . Machines | -11 ---------- Run | Yrd Machines Disabled . | . Max in Single Turn . | . Machines Repaired . | . Machines Dismantled . | . Machines Sabotaged . | . Overloaded Fab Kills . | . Hacking | -11 --------- Run | Yrd Machines Accessed . | . Terminals . | . Fabricators . | . Repair Stations . | . Recycling Units . | . Scanalyzers . | . Garrison Access . | . Total Hacks . | . Successful . | . Failed . | . Catastrophic . | . Database Lockouts . | . Manual . | . Terminals . | . Fabricators . | . Repair Stations . | . Recycling Units . | . Scanalyzers . | . Garrison Access . | . Terminal Hacks . | . Fabricator Hacks . | . Repair Station Hacks . | . Recycling Unit Hacks . | . Scanalyzer . | . Garrison Access Hacks . | . Unauthorized Hacks . | . Terminals . | . Fabricators . | . Repair Stations . | . Recycling Units . | . Scanalyzers . | . Garrison Access . | . Data Cores Recovered . | . Used . | . Hacking Detections . | . Full Trace Events . | . Feedback Events . | . Feedback Blocked . | . Robot Schematics Acquired . | . Robots Built . | . Authchips . | . Time . | . Total Robot Build Rating . | . Part Schematics Acquired . | . Parts Built . | . Authchips . | . Time . | . Total Part Build Rating . | . Part Studies Acquired . | . Parts Repaired . | . Time . | . Parts Recycled . | . Recycled Matter . | . Retrieved Matter . | . Retrieved Components . | . Parts Scanalyzed . | . Part Schematics Acquired . | . Parts Damaged . | . Bothacking | -11 ------------ Run | Yrd Used RIF Installer . | . Robots Hacked . | . Non-combat . | . Combat . | . Robot Hacks Applied . | . Relay Couplers Released . | . Fabnet Peak Effective % . | . Robots Rewired . | . Allies Hacked . | . Hacks Repelled . | . Allies | -11 -------- Run | Yrd Total Allies . | . Largest Group . | . Highest-Rated Group . | . Highest-Rated Ally . | . Total Orders . | . Ally Attacks . | . Total Damage . | . Kills . | . Allies Corrupted . | . Allies Melted . | . Intel | -11 ------- Run | Yrd Active Infowar (turns) 1806 | 1806 Terrain 1806 | 1806 Robot Analysis Total . | . Derelict Logs Recovered . | . Drone Launches . | . Drone Recoveries . | . Exploration | -11 ------------- Run | Yrd Turns Passed 1920 | 1920 Spaces Moved 168 | 168 Core . | . Treads . | . Legs 168 | 168 Wheels . | . Hover . | . Flight . | . Fastest Speed 120 | 120 Average Speed 120 | 120 Slowest Speed 120 | 120 Overloaded Moves . | . Propulsion Burnouts . | . Robots Hopped . | . Potential Cave-ins 11 | 11 Cave-ins Triggered 6 | 6 Exploration Rate (%) 12 | 12 Regions Visited . Branch Regions . Pre-discovered Areas . | . Known Exits Taken . | . Unknown Exits Taken . | . Scrap Searched . | . Spaces Dug 14 | 14 Terrain Destroyed 23 | 23 Melee . | . Projectile 23 | 23 AOE . | . Terrain Rammed . | . Walls Destroyed . | . Machines Disabled . | . Actions | -11 --------- Run | Yrd Total 1778 | 1778 Wait 1566 | 1566 Move 167 | 167 Hop . | . Pick Up 1 | 1 Fast Attach 1 | 1 Attach . | . Detach . | . Swap 1 | 1 Drop . | . Fire 41 | 41 Melee . | . Ram . | . Kick . | . Crush . | . Escape Stasis 1 | 1 Rewire . | . Trap . | . Miscellaneous . | . Route ------- -11/Scrapyard (discovered 1 exit: [*Mat]) History --------- Turn | Location | Event 1 | -11/Scrapyard | Discovered new exit (range 3) 1824 | -11/Scrapyard | Crushed by falling debris 1824 | -11/Scrapyard | Core integrity fell below 50% 1878 | -11/Scrapyard | Crushed by falling debris 1878 | -11/Scrapyard | System corruption reached 10% 1882 | -11/Scrapyard | Crushed by falling debris 1890 | -11/Scrapyard | Crushed by falling debris 1890 | -11/Scrapyard | Core integrity fell below 20% 1906 | -11/Scrapyard | Crushed by falling debris 1913 | -11/Scrapyard | Lost 4 parts (1p2n1w) 1922 | -11/Scrapyard | Crushed by falling debris 1922 | -11/Scrapyard | Smashed by cave-in Last Messages --------------- 01873_ The unstable cave ceiling collapses. 01878_ Crushed by falling debris. 01878_ Mining Laser destroyed. 01878_ System corrupted by crushing effect (+1). 01878_ Aluminum Leg destroyed. 01878_ System corrupted by crushing effect (+3). 01878_ Lgt. Ion Engine destroyed. 01878_ System corrupted by crushing effect (+2). 01882_ The unstable cave ceiling collapses. 01882_ Crushed by falling debris. 01882_ Aluminum Leg destroyed. 01882_ System corrupted by crushing effect (+2). 01883_ System corrupted: Matter fused (-6). 01890_ The unstable cave ceiling collapses. 01890_ Crushed by falling debris. 01900_ System corrupted: Heat flow error (+142). 01906_ The unstable cave ceiling collapses. 01906_ Crushed by falling debris. 01922_ The unstable cave ceiling collapses. 01922_ Crushed by falling debris. Map ----- +----------------------------------------------------+ | | | | | | | | | | | | | | | | | ?????????????????????????????????????????????????? | | ?????????????????????????????????????????????????? | | ?????????????????????????????????????????????????? | | ?????????????????????????????????????????????????? | | ?????????????????????????????????????????????????? | | ?????????????????????????????????????????????????? | | ?????????????????????????????????????????????????? | | ?????????????????????????????????????????????????? | | ?????????????????????????????????????????????????? | | ?????????????????????????????????????????????????? | | ?????????????????????????????????????????????????? | | ?????????????????????????????????????????????????? | | ?????????????????????????????????????????????????? | | ?????????????????????????#??#????????????????????? | | ?????????????????????????????????????????????????? | | ????????????????????##??#####?#??????????????????? | | ????????????????????#???### #????????????????????? | | ?????????????????#??????#@##????????#????????????? | | ?????????????#????????######?????????????????????? | | ??????????????????????# ##????????##????????????? | | ????????????????#?????# ###???##????????????????? | | ??????????????#?#???#?## ######?##??????????????? | | ??????????????###?#??#?## ######?#######?????????? | | ?????????????########?### ##?###?#####?##?#??????? | | ????????#?#?#?###??##?## #?#####??#?#?###?#?????? | | ??????????#####??#?#####################?????????? | | ??????????#?#??########?## ##############?##????? | | ?????????#???##??#?## ##?# #####?####??###??#??? | | ?????? ??##????##### ##### #######?#???????? | | ????????##?## ?###### ###### #######??####?#?? | | ?????? ? ?#?#?###?### ###### ##?########?##??? | | ?????????? ?? ?#?### ###### ######???####???? | | ???????????#??##??## ###### ###############?# | | ???????#? #?#??###### ##?### #?##?# ? #?? | | ?????? ?#?##??####### ###### ######? #?? | | ???????#?##???#?##### ######## ### # #?# | | ?????? ????##??##??# # #?? | | ???????#???######### ### | | ?????????????##????#### ########## # #?? | | ?????? ????##???##? # ??## ## #?? | | ?????????#????# # # # #### ## ##? | | ????????#?#? ????## # ### ##? ? ### | +----------------------------------------------------+ Best States ------------- Heat Dissipation 25 Energy Generation 10 Energy Capacity 125 Matter Stores 300 Matter Capacity 300 Sight Range 16 Terrain Scan Range 16 Terrain Scan Density 10 Evasion (%) 55 Item Schematics ----------------- None Robot Schematics ------------------ None Fabricated ------------ Nothing Repaired ---------- Nothing Studied --------- None Alien Tech Used ----------------- None Achievements -------------- None Challenges ------------ None Game ------ Seed WeaponTargetingPower Manual? 0 Play Time 00:05:24 Cumulative 267.7 hours Start 2026.01.05 @ 15:22:27 End 2026.01.05 @ 15:25:13 Sessions 0 Manual Loads 0 Difficulty Rogue Special Mode None Game No. 341 Rogue 340 Adventurer 1 Explorer 0 Win Type - Total 2 Types 1/0/0/1/0/0/0/0/0/0 Lore% 73 Gallery% 67 Achievement% 56 Wizard Run 0 Options --------- Layout 0 ASCII 0 Keyboard 0 Movement Numpad Keybinds 0 Fullscreen 1 Font 24/Smallcaps Map View 76x50 Zoom Use 0% Tactical HUD 1 Map Filters NONE Filters NONE Steam 1 RUN: 8e0d7d66-2253-463c-9494-53dfc3a045ed